[Event "Live Chess"]
[Site "Chess.com"]
[Date "2023.05.20"]
[Round "-"]
[White "Sacbutt"]
[Black "NAZRIZ1977"]
[Result "1/2-1/2"]
[WhiteElo "2208"]
[BlackElo "2146"]
[TimeControl "300"]
[EndTime "10:40:04 PDT"]
[Termination "Game drawn - insufficient material"]

1. d4 {[%clk 0:04:58.4]} 1... Nf6 {[%clk 0:04:59]} 2. c4 {[%clk 0:04:57.5]} 2...
c5 {[%clk 0:04:58.4]} 3. d5 {[%clk 0:04:56.5]} 3... b5 {[%clk 0:04:57.8]} 4.
cxb5 {[%clk 0:04:56.4]} 4... a6 {[%clk 0:04:57.2]} 5. bxa6 {[%clk 0:04:56.1]}
5... g6 {[%clk 0:04:56.7]} 6. Nc3 {[%clk 0:04:55.6]} 6... d6 {[%clk 0:04:56.3]}
7. Nf3 {[%clk 0:04:55.2]} 7... Bxa6 {[%clk 0:04:55.4]} 8. g3 {[%clk 0:04:54.6]}
8... Bg7 {[%clk 0:04:54.9]} 9. Bg2 {[%clk 0:04:54.1]} 9... O-O {[%clk
0:04:54.5]} 10. O-O {[%clk 0:04:53.6]} 10... Qa5 {[%clk 0:04:54]} 11. Rb1 {[%clk
0:04:53.2]} 11... Nbd7 {[%clk 0:04:53.5]} 12. Qc2 {[%clk 0:04:50.2]} 12... Rfb8
{[%clk 0:04:52.7]} 13. Rd1 {[%clk 0:04:48.8]} 13... Ne8 {[%clk 0:04:51.9]} 14.
Bd2 {[%clk 0:04:44.6]} 14... Nc7 {[%clk 0:04:51.1]} 15. b3 {[%clk 0:04:39.5]}
15... Nb5 {[%clk 0:04:49.2]} 16. Nxb5 {[%clk 0:04:30.7]} 16... Qxb5 {[%clk
0:04:48.1]} 17. e4 {[%clk 0:04:14.8]} 17... Qd3 {[%clk 0:04:42.7]} 18. Qc1
{[%clk 0:03:48.7]} 18... Qxe4 {[%clk 0:04:24.6]} 19. Bc3 {[%clk 0:03:48]} 19...
Bxc3 {[%clk 0:04:15.5]} 20. Qxc3 {[%clk 0:03:47.9]} 20... Qg4 {[%clk 0:04:14.9]}
21. Re1 {[%clk 0:03:42.4]} 21... Re8 {[%clk 0:04:09.2]} 22. b4 {[%clk
0:03:36.5]} 22... Rab8 {[%clk 0:04:01]} 23. a3 {[%clk 0:03:32.2]} 23... cxb4
{[%clk 0:03:58.7]} 24. axb4 {[%clk 0:03:31.1]} 24... Nf6 {[%clk 0:03:47]} 25.
Nd4 {[%clk 0:03:19.8]} 25... Bb5 {[%clk 0:03:30.3]} 26. h3 {[%clk 0:03:06.1]}
26... Qd7 {[%clk 0:03:25.6]} 27. Nc6 {[%clk 0:03:02.5]} 27... Rbc8 {[%clk
0:03:21.8]} 28. Rec1 {[%clk 0:02:55.7]} 28... Ra8 {[%clk 0:03:15.4]} 29. Re1
{[%clk 0:02:46.3]} 29... h5 {[%clk 0:03:13.8]} 30. Nxe7+ {[%clk 0:02:38.5]}
30... Rxe7 {[%clk 0:03:10.3]} 31. Qxf6 {[%clk 0:02:37.8]} 31... Rae8 {[%clk
0:03:07.1]} 32. Rxe7 {[%clk 0:02:29.9]} 32... Qxe7 {[%clk 0:03:06.3]} 33. Qxe7
{[%clk 0:02:23.3]} 33... Rxe7 {[%clk 0:03:06.2]} 34. Bf1 {[%clk 0:02:21.7]}
34... Rb7 {[%clk 0:03:05.4]} 35. f4 {[%clk 0:02:02.6]} 35... Kf8 {[%clk
0:02:56.1]} 36. Kf2 {[%clk 0:01:59.1]} 36... Ke7 {[%clk 0:02:54.2]} 37. Bg2
{[%clk 0:01:56.2]} 37... h4 {[%clk 0:02:49]} 38. g4 {[%clk 0:01:54.4]} 38... Kd7
{[%clk 0:02:44.2]} 39. Ke3 {[%clk 0:01:53]} 39... Rb8 {[%clk 0:02:42.8]} 40. Kd4
{[%clk 0:01:49.9]} 40... Re8 {[%clk 0:02:37]} 41. Bf1 {[%clk 0:01:47.1]} 41...
Bxf1 {[%clk 0:02:31.9]} 42. Rxf1 {[%clk 0:01:47]} 42... f5 {[%clk 0:02:31.5]}
43. gxf5 {[%clk 0:01:43.2]} 43... gxf5 {[%clk 0:02:30.6]} 44. Rg1 {[%clk
0:01:34.9]} 44... Re4+ {[%clk 0:02:27.7]} 45. Kc3 {[%clk 0:01:29.1]} 45... Rxf4
{[%clk 0:02:27.6]} 46. Rg7+ {[%clk 0:01:25.4]} 46... Kc8 {[%clk 0:02:26.6]} 47.
b5 {[%clk 0:01:22.9]} 47... Rf3+ {[%clk 0:02:24.7]} 48. Kb4 {[%clk 0:01:22.6]}
48... Rxh3 {[%clk 0:02:24.5]} 49. Ka5 {[%clk 0:01:19.4]} 49... Rg3 {[%clk
0:02:18]} 50. Rf7 {[%clk 0:01:15.3]} 50... h3 {[%clk 0:02:12.4]} 51. Rxf5 {[%clk
0:01:14.3]} 51... h2 {[%clk 0:02:09.3]} 52. Rh5 {[%clk 0:01:13]} 52... Rg5
{[%clk 0:02:04.5]} 53. Rxh2 {[%clk 0:01:08.2]} 53... Rxd5 {[%clk 0:02:03.4]} 54.
Kb6 {[%clk 0:01:05.1]} 54... Rc5 {[%clk 0:01:51.8]} 55. Rh6 {[%clk 0:00:56.2]}
55... Kd7 {[%clk 0:01:46.3]} 56. Rh7+ {[%clk 0:00:46.4]} 56... Ke6 {[%clk
0:01:44.9]} 57. Ka6 {[%clk 0:00:43.7]} 57... Rc1 {[%clk 0:01:37.7]} 58. b6
{[%clk 0:00:41.3]} 58... Ra1+ {[%clk 0:01:36.7]} 59. Kb5 {[%clk 0:00:39.3]}
59... d5 {[%clk 0:01:35.4]} 60. b7 {[%clk 0:00:36.9]} 60... d4 {[%clk
0:01:30.6]} 61. Kc4 {[%clk 0:00:29.8]} 61... Rb1 {[%clk 0:01:25.8]} 62. Kxd4
{[%clk 0:00:24.5]} 62... Kd6 {[%clk 0:01:24]} 63. Kc4 {[%clk 0:00:20.2]} 63...
Kc6 {[%clk 0:01:22.4]} 64. Kd4 {[%clk 0:00:19.6]} 64... Rxb7 {[%clk 0:01:21.2]}
65. Rxb7 {[%clk 0:00:19.5]} 65... Kxb7 {[%clk 0:01:20.6]} 1/2-1/2

[Event "Live Chess"]
[Site "Chess.com"]
[Date "2023.05.20"]
[Round "-"]
[White "HoarseyHorsey"]
[Black "smoggyrabbit"]
[Result "0-1"]
[WhiteElo "1392"]
[BlackElo "1616"]
[TimeControl "300"]
[EndTime "10:40:14 PDT"]
[Termination "smoggyrabbit won by resignation"]

1. d4 {[%clk 0:04:58]} 1... e6 {[%clk 0:04:58.9]} 2. c4 {[%clk 0:04:57.2]} 2...
f5 {[%clk 0:04:58]} 3. Nc3 {[%clk 0:04:56]} 3... Nf6 {[%clk 0:04:57.3]} 4. Bg5
{[%clk 0:04:55.1]} 4... Bb4 {[%clk 0:04:55.8]} 5. e3 {[%clk 0:04:54.2]} 5... O-O
{[%clk 0:04:54.3]} 6. h4 {[%clk 0:04:53.1]} 6... d6 {[%clk 0:04:45.8]} 7. Nf3
{[%clk 0:04:47.2]} 7... Nbd7 {[%clk 0:04:43.7]} 8. Bd3 {[%clk 0:04:45.9]} 8...
h6 {[%clk 0:04:19.1]} 9. Bxf6 {[%clk 0:04:42.3]} 9... Nxf6 {[%clk 0:04:19]} 10.
Qc2 {[%clk 0:04:40.7]} 10... Qe8 {[%clk 0:04:05]} 11. O-O-O {[%clk 0:04:39.6]}
11... Bxc3 {[%clk 0:04:01.2]} 12. Qxc3 {[%clk 0:04:36.9]} 12... Ne4 {[%clk
0:03:57.6]} 13. Qc2 {[%clk 0:04:33.8]} 13... d5 {[%clk 0:03:56.2]} 14. cxd5
{[%clk 0:04:31.9]} 14... exd5 {[%clk 0:03:55.1]} 15. Ne5 {[%clk 0:04:30.7]}
15... Be6 {[%clk 0:03:41.4]} 16. f3 {[%clk 0:04:25.5]} 16... Nd6 {[%clk
0:03:31.8]} 17. Rdf1 {[%clk 0:04:15.7]} 17... b6 {[%clk 0:03:13.9]} 18. g4
{[%clk 0:04:07.5]} 18... c5 {[%clk 0:03:06.3]} 19. gxf5 {[%clk 0:03:58]} 19...
Nxf5 {[%clk 0:02:56.5]} 20. e4 {[%clk 0:03:55.8]} 20... Ne3 {[%clk 0:02:54]} 21.
Qd2 {[%clk 0:03:53.9]} 21... Nxf1 {[%clk 0:02:51.1]} 22. Rxf1 {[%clk 0:03:53.8]}
22... cxd4 {[%clk 0:02:45]} 23. Kb1 {[%clk 0:03:43.7]} 23... dxe4 {[%clk
0:02:17.9]} 24. Bxe4 {[%clk 0:03:40.5]} 24... Rc8 {[%clk 0:02:12.8]} 25. Qd3
{[%clk 0:03:31.3]} 25... Bxa2+ {[%clk 0:01:59.3]} 26. Kxa2 {[%clk 0:03:24.6]}
26... Qxe5 {[%clk 0:01:58.1]} 27. Re1 {[%clk 0:03:19.1]} 27... Qa5+ {[%clk
0:01:54.7]} 28. Kb1 {[%clk 0:03:17.9]} 28... Qxe1+ {[%clk 0:01:53.3]} 0-1

[Event "Live Chess"]
[Site "Chess.com"]
[Date "2023.05.20"]
[Round "-"]
[White "gmnorfolk"]
[Black "Conradical12"]
[Result "1-0"]
[WhiteElo "2135"]
[BlackElo "1536"]
[TimeControl "300"]
[EndTime "10:40:23 PDT"]
[Termination "gmnorfolk won on time"]

1. d4 {[%clk 0:04:58.4]} 1... d5 {[%clk 0:04:58.2]} 2. c4 {[%clk 0:04:57.9]}
2... c6 {[%clk 0:04:56.5]} 3. Nf3 {[%clk 0:04:56.5]} 3... Nf6 {[%clk 0:04:55.9]}
4. e3 {[%clk 0:04:55.4]} 4... e6 {[%clk 0:04:55.4]} 5. Nbd2 {[%clk 0:04:52.3]}
5... Bd6 {[%clk 0:04:54.8]} 6. b3 {[%clk 0:04:51.3]} 6... O-O {[%clk 0:04:54]}
7. Bd3 {[%clk 0:04:49.8]} 7... Nbd7 {[%clk 0:04:52.9]} 8. Qe2 {[%clk 0:04:47]}
8... a5 {[%clk 0:04:52.4]} 9. e4 {[%clk 0:04:46.2]} 9... dxe4 {[%clk 0:04:51]}
10. Nxe4 {[%clk 0:04:46.1]} 10... Nxe4 {[%clk 0:04:49.9]} 11. Qxe4 {[%clk
0:04:44.9]} 11... f5 {[%clk 0:04:49.1]} 12. Qxe6+ {[%clk 0:04:43.3]} 12... Kh8
{[%clk 0:04:46.5]} 13. Qxd6 {[%clk 0:04:42.5]} 13... Re8+ {[%clk 0:04:44.4]} 14.
Kf1 {[%clk 0:04:41.2]} 14... a4 {[%clk 0:04:37.3]} 15. Ng5 {[%clk 0:04:27]}
15... Qa5 {[%clk 0:04:25.9]} 16. b4 {[%clk 0:04:07]} 16... Qa7 {[%clk
0:04:05.9]} 17. Bxf5 {[%clk 0:03:35.3]} 17... Nf6 {[%clk 0:03:55.5]} 18. Be3
{[%clk 0:03:30.2]} 18... Bxf5 {[%clk 0:03:43.4]} 19. Qf4 {[%clk 0:03:24.6]}
19... Bg6 {[%clk 0:03:32.9]} 20. h4 {[%clk 0:03:18.6]} 20... Rf8 {[%clk
0:03:17.7]} 21. Re1 {[%clk 0:03:07.2]} 21... Rae8 {[%clk 0:03:09]} 22. Kg1
{[%clk 0:03:02.8]} 22... h5 {[%clk 0:02:45.5]} 23. d5 {[%clk 0:02:57.2]} 23...
Qa6 {[%clk 0:01:43]} 24. Ne6 {[%clk 0:02:31.3]} 24... Rf7 {[%clk 0:01:30]} 25.
Qg5 {[%clk 0:02:20.6]} 25... cxd5 {[%clk 0:00:56.7]} 26. Qxg6 {[%clk 0:02:15.8]}
26... Qxe6 {[%clk 0:00:54.8]} 27. cxd5 {[%clk 0:02:09.8]} 27... Qxd5 {[%clk
0:00:46.3]} 28. f3 {[%clk 0:02:06.3]} 28... Qe6 {[%clk 0:00:41.4]} 29. Bf2
{[%clk 0:01:54.6]} 29... Qd7 {[%clk 0:00:34.6]} 30. Rxe8+ {[%clk 0:01:49.3]}
30... Qxe8 {[%clk 0:00:32.2]} 31. Kh2 {[%clk 0:01:45.5]} 31... Qe5+ {[%clk
0:00:29.9]} 32. Bg3 {[%clk 0:01:42.8]} 32... Qe7 {[%clk 0:00:25.7]} 33. Re1
{[%clk 0:01:39.1]} 33... Qf8 {[%clk 0:00:19]} 34. b5 {[%clk 0:01:32.4]} 34...
Ng4+ {[%clk 0:00:16.7]} 35. fxg4 {[%clk 0:01:28.8]} 35... hxg4 {[%clk
0:00:16.6]} 36. Qh5+ {[%clk 0:01:26.7]} 36... Kg8 {[%clk 0:00:15.3]} 37. Qxg4
{[%clk 0:01:25]} 37... Rf6 {[%clk 0:00:14.4]} 38. Qc4+ {[%clk 0:01:22.7]} 38...
Kh8 {[%clk 0:00:13.2]} 39. Re5 {[%clk 0:01:18.1]} 39... Rh6 {[%clk 0:00:11.9]}
40. Qe4 {[%clk 0:01:13.4]} 40... Qf6 {[%clk 0:00:10.6]} 41. Re8+ {[%clk
0:01:08.3]} 1-0

[Event "Live Chess"]
[Site "Chess.com"]
[Date "2023.05.20"]
[Round "-"]
[White "HD_IN4k"]
[Black "Brooms1989"]
[Result "0-1"]
[WhiteElo "324"]
[BlackElo "986"]
[TimeControl "300"]
[EndTime "10:40:25 PDT"]
[Termination "Brooms1989 won by resignation"]

1. d4 {[%clk 0:04:50.8]} 1... Nf6 {[%clk 0:04:57.7]} 2. c4 {[%clk 0:04:50.1]}
2... g6 {[%clk 0:04:55.8]} 3. e3 {[%clk 0:04:40.6]} 3... Bg7 {[%clk 0:04:48.6]}
4. Nf3 {[%clk 0:04:40.5]} 4... d6 {[%clk 0:04:44]} 5. b3 {[%clk 0:04:35.3]} 5...
O-O {[%clk 0:04:36.4]} 6. Ba3 {[%clk 0:04:34.3]} 6... Nbd7 {[%clk 0:04:30.9]} 7.
Qd3 {[%clk 0:04:21.7]} 7... Re8 {[%clk 0:04:18.5]} 8. e4 {[%clk 0:04:18.5]} 8...
e5 {[%clk 0:04:13.2]} 9. dxe5 {[%clk 0:04:16.8]} 9... dxe5 {[%clk 0:04:11.6]}
10. h4 {[%clk 0:04:00.9]} 10... Nb6 {[%clk 0:04:03.8]} 11. h5 {[%clk 0:03:59.3]}
11... Qxd3 {[%clk 0:04:01.1]} 12. Bxd3 {[%clk 0:03:46.6]} 12... Nxh5 {[%clk
0:03:59.7]} 13. Ng5 {[%clk 0:03:39]} 13... h6 {[%clk 0:03:49.5]} 14. Nf3 {[%clk
0:03:29.6]} 14... Bg4 {[%clk 0:03:43.2]} 15. Rh4 {[%clk 0:03:17.8]} 15... Bxf3
{[%clk 0:03:39.6]} 16. gxf3 {[%clk 0:03:16.1]} 16... Rad8 {[%clk 0:03:38.3]} 17.
Bc5 {[%clk 0:03:03]} 17... Rxd3 {[%clk 0:03:28.5]} 18. Bxb6 {[%clk 0:02:39]}
18... axb6 {[%clk 0:03:24.2]} 19. b4 {[%clk 0:02:32.5]} 19... Rxf3 {[%clk
0:03:20.3]} 20. c5 {[%clk 0:02:29.1]} 20... bxc5 {[%clk 0:03:17.4]} 21. bxc5
{[%clk 0:02:27.6]} 21... Rf4 {[%clk 0:03:13.3]} 22. c6 {[%clk 0:02:27.5]} 22...
bxc6 {[%clk 0:03:03.9]} 23. Rxf4 {[%clk 0:02:25.3]} 23... exf4 {[%clk
0:03:01.5]} 24. a4 {[%clk 0:02:22.1]} 24... Bxa1 {[%clk 0:02:59.3]} 25. a5
{[%clk 0:02:19.3]} 25... Ra8 {[%clk 0:02:57.6]} 26. Nc3 {[%clk 0:02:13.6]} 26...
Bxc3+ {[%clk 0:02:56.5]} 27. Ke2 {[%clk 0:02:08.5]} 27... Rxa5 {[%clk
0:02:55.8]} 28. Kf3 {[%clk 0:02:05.9]} 28... Nf6 {[%clk 0:02:48.6]} 29. e5
{[%clk 0:02:03.1]} 29... Bxe5 {[%clk 0:02:47.1]} 30. Kg2 {[%clk 0:02:00]} 30...
Rd5 {[%clk 0:02:46.5]} 31. f3 {[%clk 0:01:58.7]} 31... c5 {[%clk 0:02:45.5]} 32.
Kh3 {[%clk 0:01:55.1]} 32... c4 {[%clk 0:02:44.9]} 33. Kh4 {[%clk 0:01:52.4]}
33... c3 {[%clk 0:02:44.4]} 0-1

[Event "Live Chess"]
[Site "Chess.com"]
[Date "2023.05.20"]
[Round "-"]
[White "ClassyChameleon"]
[Black "Outspanner"]
[Result "0-1"]
[WhiteElo "1048"]
[BlackElo "1543"]
[TimeControl "300"]
[EndTime "10:40:33 PDT"]
[Termination "Outspanner won on time"]

1. e4 {[%clk 0:04:59.4]} 1... d6 {[%clk 0:04:56.6]} 2. d4 {[%clk 0:04:55.5]}
2... Nf6 {[%clk 0:04:55.8]} 3. Nc3 {[%clk 0:04:53.9]} 3... Nbd7 {[%clk
0:04:55.4]} 4. Bc4 {[%clk 0:04:52.5]} 4... e5 {[%clk 0:04:53.2]} 5. d5 {[%clk
0:04:47.6]} 5... c6 {[%clk 0:04:49.6]} 6. Nf3 {[%clk 0:04:41.7]} 6... Be7 {[%clk
0:04:46.6]} 7. O-O {[%clk 0:04:40.5]} 7... O-O {[%clk 0:04:44.6]} 8. Bg5 {[%clk
0:04:34.2]} 8... c5 {[%clk 0:04:43.3]} 9. Qd2 {[%clk 0:04:11.7]} 9... a6 {[%clk
0:04:41.5]} 10. Nh4 {[%clk 0:04:09.8]} 10... b5 {[%clk 0:04:37.8]} 11. Bd3
{[%clk 0:04:05.8]} 11... c4 {[%clk 0:04:29.4]} 12. Be2 {[%clk 0:04:02.9]} 12...
b4 {[%clk 0:04:28.8]} 13. Na4 {[%clk 0:04:01.1]} 13... Nxe4 {[%clk 0:04:25.9]}
14. Bxe7 {[%clk 0:03:47.6]} 14... Qxe7 {[%clk 0:04:05.9]} 15. Nf5 {[%clk
0:03:42.1]} 15... Qf6 {[%clk 0:03:56.8]} 16. Qxb4 {[%clk 0:03:22]} 16... Qxf5
{[%clk 0:03:56]} 17. Bxc4 {[%clk 0:03:13.4]} 17... Ndc5 {[%clk 0:03:47.6]} 18.
Qa5 {[%clk 0:02:24.9]} 18... Nxa4 {[%clk 0:03:36.6]} 19. Qxa4 {[%clk 0:02:22.5]}
19... Bd7 {[%clk 0:03:21.8]} 20. Qb4 {[%clk 0:02:08.6]} 20... Rfb8 {[%clk
0:02:59.4]} 21. Qe1 {[%clk 0:02:02.7]} 21... Nc5 {[%clk 0:02:48.7]} 22. b3
{[%clk 0:01:50.1]} 22... Bb5 {[%clk 0:02:43.1]} 23. Bxb5 {[%clk 0:01:46.3]}
23... axb5 {[%clk 0:02:42.6]} 24. b4 {[%clk 0:01:44.7]} 24... Ne4 {[%clk
0:02:35.3]} 25. f3 {[%clk 0:01:37]} 25... Nf6 {[%clk 0:02:28.4]} 26. c3 {[%clk
0:01:30.1]} 26... Rc8 {[%clk 0:02:11.7]} 27. Qc1 {[%clk 0:01:20.1]} 27... Rc4
{[%clk 0:02:05.8]} 28. a4 {[%clk 0:01:11.4]} 28... Rxa4 {[%clk 0:01:52.2]} 29.
Qb2 {[%clk 0:01:09]} 29... Qd3 {[%clk 0:01:30.5]} 30. Rxa4 {[%clk 0:00:48.8]}
30... bxa4 {[%clk 0:01:29.1]} 31. Qa2 {[%clk 0:00:44.7]} 31... Rxc3 {[%clk
0:01:17.2]} 32. Qxa4 {[%clk 0:00:41.1]} 32... Qd4+ {[%clk 0:01:11.9]} 33. Kh1
{[%clk 0:00:36.7]} 33... h6 {[%clk 0:01:11.4]} 34. Qa8+ {[%clk 0:00:24.8]} 34...
Kh7 {[%clk 0:01:10.2]} 35. b5 {[%clk 0:00:24.2]} 35... Nxd5 {[%clk 0:00:57.5]}
36. Qa6 {[%clk 0:00:18.4]} 36... Qb6 {[%clk 0:00:47.9]} 37. h3 {[%clk
0:00:13.3]} 37... Qxa6 {[%clk 0:00:44.2]} 38. bxa6 {[%clk 0:00:12.6]} 38... Ra3
{[%clk 0:00:43.9]} 39. Rd1 {[%clk 0:00:10.8]} 39... Nc7 {[%clk 0:00:28.2]} 40.
Rxd6 {[%clk 0:00:10.1]} 40... Rxa6 {[%clk 0:00:25.6]} 41. Rxa6 {[%clk
0:00:09.7]} 41... Nxa6 {[%clk 0:00:24.1]} 42. Kh2 {[%clk 0:00:09.4]} 42... Nc5
{[%clk 0:00:22.8]} 43. Kg3 {[%clk 0:00:09]} 43... Kg6 {[%clk 0:00:22.3]} 44. Kg4
{[%clk 0:00:08.2]} 44... h5+ {[%clk 0:00:19.3]} 45. Kh4 {[%clk 0:00:07.5]} 45...
Kf6 {[%clk 0:00:13.5]} 46. g4 {[%clk 0:00:07.2]} 46... hxg4 {[%clk 0:00:12.1]}
47. hxg4 {[%clk 0:00:06]} 47... Nd3 {[%clk 0:00:09.6]} 48. g5+ {[%clk
0:00:04.3]} 48... Kg6 {[%clk 0:00:08.7]} 49. Kg4 {[%clk 0:00:03.8]} 49... Nf2+
{[%clk 0:00:06.7]} 50. Kg3 {[%clk 0:00:02.7]} 50... Nd3 {[%clk 0:00:05.2]} 51.
Kg4 {[%clk 0:00:01.4]} 51... f6 {[%clk 0:00:04.5]} 52. Kg3 {[%clk 0:00:01.1]}
52... f5 {[%clk 0:00:02.7]} 53. f4 {[%clk 0:00:00.2]} 53... exf4+ {[%clk
0:00:01.5]} 0-1

[Event "Live Chess"]
[Site "Chess.com"]
[Date "2023.05.20"]
[Round "-"]
[White "jennybobby44"]
[Black "TobyQuaite"]
[Result "1-0"]
[WhiteElo "1852"]
[BlackElo "1696"]
[TimeControl "300"]
[EndTime "10:40:44 PDT"]
[Termination "jennybobby44 won by resignation"]

1. Nf3 {[%clk 0:04:58.7]} 1... Nf6 {[%clk 0:04:57.7]} 2. g3 {[%clk 0:04:56.9]}
2... d5 {[%clk 0:04:55.5]} 3. Bg2 {[%clk 0:04:55.9]} 3... c5 {[%clk 0:04:55.2]}
4. d3 {[%clk 0:04:52]} 4... Nc6 {[%clk 0:04:52.9]} 5. Nbd2 {[%clk 0:04:44.4]}
5... h6 {[%clk 0:04:48.8]} 6. c3 {[%clk 0:04:42.2]} 6... Bf5 {[%clk 0:04:47.2]}
7. O-O {[%clk 0:04:37.7]} 7... e6 {[%clk 0:04:44.8]} 8. Re1 {[%clk 0:04:36.8]}
8... Bh7 {[%clk 0:04:34.2]} 9. e4 {[%clk 0:04:35.7]} 9... dxe4 {[%clk
0:04:32.9]} 10. dxe4 {[%clk 0:04:34.4]} 10... Be7 {[%clk 0:04:31.9]} 11. Qe2
{[%clk 0:04:31.3]} 11... O-O {[%clk 0:04:23.6]} 12. h3 {[%clk 0:04:29.8]} 12...
Qc7 {[%clk 0:03:51]} 13. Nc4 {[%clk 0:04:16.7]} 13... e5 {[%clk 0:03:45.9]} 14.
a4 {[%clk 0:04:08]} 14... a6 {[%clk 0:03:42.7]} 15. a5 {[%clk 0:03:56.7]} 15...
Nxe4 {[%clk 0:03:26.6]} 16. Nb6 {[%clk 0:03:52.2]} 16... Rad8 {[%clk 0:03:18]}
17. Nh2 {[%clk 0:03:35.9]} 17... Nf6 {[%clk 0:03:09.9]} 18. Bxc6 {[%clk
0:03:25.9]} 18... Qxc6 {[%clk 0:03:02.1]} 19. Qxe5 {[%clk 0:03:24.1]} 19... Rfe8
{[%clk 0:02:52.4]} 20. Qf4 {[%clk 0:02:34.3]} 20... Nd5 {[%clk 0:02:39.5]} 21.
Nxd5 {[%clk 0:02:29.9]} 21... Qxd5 {[%clk 0:02:39.4]} 22. Be3 {[%clk 0:02:10]}
22... Bg5 {[%clk 0:02:36.9]} 23. Qf3 {[%clk 0:01:56.1]} 23... Be4 {[%clk
0:02:34.5]} 24. Qg4 {[%clk 0:01:47.7]} 24... g6 {[%clk 0:02:23]} 25. Bxg5 {[%clk
0:01:36.8]} 25... hxg5 {[%clk 0:02:16.9]} 26. Rad1 {[%clk 0:01:25]} 26... Bd3
{[%clk 0:01:47.9]} 27. Rxe8+ {[%clk 0:01:10.9]} 27... Rxe8 {[%clk 0:01:47.8]}
28. Nf3 {[%clk 0:00:57.3]} 28... Qf5 {[%clk 0:01:36.8]} 29. Qxf5 {[%clk
0:00:33.2]} 29... Bxf5 {[%clk 0:01:33.6]} 30. g4 {[%clk 0:00:32.7]} 30... Bc2
{[%clk 0:01:20.6]} 31. Rd2 {[%clk 0:00:31.9]} 31... Bb3 {[%clk 0:01:17.1]} 32.
Nxg5 {[%clk 0:00:31.1]} 32... Re5 {[%clk 0:01:09.6]} 33. Nf3 {[%clk 0:00:30]}
33... Re6 {[%clk 0:00:50]} 34. Kg2 {[%clk 0:00:28.5]} 34... Kf8 {[%clk
0:00:39.8]} 35. Kg3 {[%clk 0:00:28.1]} 35... Ke7 {[%clk 0:00:36.8]} 36. Ng5
{[%clk 0:00:27.5]} 36... Re5 {[%clk 0:00:32.9]} 37. Kf4 {[%clk 0:00:26.2]} 37...
f6 {[%clk 0:00:25.7]} 38. Nf3 {[%clk 0:00:24.4]} 38... g5+ {[%clk 0:00:18.6]}
39. Kg3 {[%clk 0:00:23.4]} 39... Rd5 {[%clk 0:00:18.1]} 40. Rxd5 {[%clk
0:00:22.5]} 40... Bxd5 {[%clk 0:00:18]} 41. Nd2 {[%clk 0:00:21.8]} 41... Bc6
{[%clk 0:00:15.9]} 42. Nf1 {[%clk 0:00:20.9]} 42... Ke6 {[%clk 0:00:14.8]} 43.
Ne3 {[%clk 0:00:20.5]} 43... Ke5 {[%clk 0:00:13.9]} 44. Ng2 {[%clk 0:00:18.2]}
44... Bxg2 {[%clk 0:00:12.7]} 45. Kxg2 {[%clk 0:00:17.5]} 45... Kf4 {[%clk
0:00:12.4]} 46. f3 {[%clk 0:00:15]} 46... f5 {[%clk 0:00:11.8]} 47. gxf5 {[%clk
0:00:13.6]} 47... Kxf5 {[%clk 0:00:11.7]} 48. Kg3 {[%clk 0:00:13.5]} 48... Kg6
{[%clk 0:00:11]} 49. Kg4 {[%clk 0:00:13]} 49... Kh6 {[%clk 0:00:10.7]} 50. h4
{[%clk 0:00:12.5]} 50... gxh4 {[%clk 0:00:10.6]} 51. Kxh4 {[%clk 0:00:12.4]}
51... Kg6 {[%clk 0:00:10.3]} 52. Kg4 {[%clk 0:00:12.3]} 52... Kf6 {[%clk
0:00:09.9]} 53. Kf4 {[%clk 0:00:12.2]} 53... Ke6 {[%clk 0:00:09.2]} 54. Ke4
{[%clk 0:00:12.1]} 54... Kf6 {[%clk 0:00:08.6]} 55. f4 {[%clk 0:00:12]} 55...
Ke6 {[%clk 0:00:08.1]} 56. f5+ {[%clk 0:00:11.5]} 56... Kf6 {[%clk 0:00:08]} 57.
Kd5 {[%clk 0:00:11.4]} 57... Kxf5 {[%clk 0:00:07.3]} 58. Kxc5 {[%clk 0:00:11.3]}
58... Ke6 {[%clk 0:00:06.6]} 59. Kb6 {[%clk 0:00:11.2]} 59... Kd7 {[%clk
0:00:06.1]} 60. Kxb7 {[%clk 0:00:11.1]} 60... Kd8 {[%clk 0:00:04.9]} 61. Kxa6
{[%clk 0:00:11]} 61... Kd7 {[%clk 0:00:04.8]} 62. Kb7 {[%clk 0:00:10.8]} 62...
Kd6 {[%clk 0:00:04.2]} 63. a6 {[%clk 0:00:10.7]} 63... Kd7 {[%clk 0:00:04.1]}
64. a7 {[%clk 0:00:10.2]} 64... Kd6 {[%clk 0:00:04]} 65. a8=Q {[%clk 0:00:10.1]}
65... Kd7 {[%clk 0:00:03.9]} 66. Qc8+ {[%clk 0:00:10]} 1-0